fUST/lending_fUST_20240902
["ID","MTS","AMOUNT","RATE_DAILY","PERIOD"]
[336843633,1725208238511,-300.0,0.00024656,2]
[336843634,1725208238520,-6751.77378891,0.00024657,11]
[336843635,1725208238530,-500.0,0.00024657,2]
[336843636,1725208238539,-536.15382628,0.00024657,2]
[336843637,1725208238548,-500.0,0.00024657,2]
[336843638,1725208238558,-500.0,0.00024657,2]
[336843639,1725208238567,-560.61344166,0.00024657,2]
[336843640,1725208238576,-500.0,0.00024657,2]
[336843641,1725208238585,-500.0,0.00024657,2]
[336843642,1725208238595,-500.0,0.00024657,2]
[336843643,1725208238604,-500.0,0.00024657,2]
[336843644,1725208238613,-500.0,0.00024657,2]
[336843645,1725208238623,-500.0,0.00024657,2]
[336843646,1725208238633,-500.0,0.00024657,2]
[336843647,1725208238644,-500.0,0.00024657,2]
[336843648,1725208238653,-500.0,0.00024657,2]
[336843649,1725208238663,-500.0,0.00024657,2]
[336843650,1725208238672,-500.0,0.00024657,2]
[336843651,1725208238682,-500.0,0.00024657,2]
[336843652,1725208238692,-500.0,0.00024657,2]
[336843653,1725208238701,-509.488147,0.00024657,2]
[336843654,1725208238710,-500.0,0.00024657,2]
[336843655,1725208238719,-500.0,0.00024657,2]
[336843656,1725208238729,-501.4242493,0.00024657,2]
[336843657,1725208238738,-500.0,0.00024657,2]
[336843658,1725208238747,-500.0,0.00024657,2]
[336843659,1725208238756,-500.0,0.00024657,2]
[336843660,1725208238765,-500.0,0.00024657,2]
[336843661,1725208238775,-500.0,0.00024657,2]
[336843662,1725208238785,-712.28,0.00024657,2]
[336843663,1725208238793,-500.0,0.00024657,2]
[336843664,1725208238802,-500.0,0.00024657,2]
[336843665,1725208238812,-500.0,0.00024657,2]
[336843666,1725208238822,-243.82111708,0.00024657,2]
[336843667,1725208238831,-393.34350349,0.00024657,2]
[336843668,1725208238840,-500.0,0.00024657,2]
[336843669,1725208238851,-500.0,0.00024657,2]
[336843670,1725208238861,-490.0,0.00024657,2]
[336843671,1725208238870,-500.0,0.00024657,2]
[336843672,1725208238879,-204.84754199,0.00024657,2]
[336843673,1725208238889,-500.0,0.00024657,2]
[336843674,1725208238899,-500.0,0.00024657,2]
[336843675,1725208238908,-500.0,0.00024657,2]
[336843676,1725208238918,-500.0,0.00024657,2]
[336843677,1725208238928,-500.0,0.00024657,2]
[336843678,1725208238938,-500.0,0.00024657,2]
[336843679,1725208238947,-500.0,0.00024657,2]
[336843680,1725208238956,-500.0,0.00024657,2]
[336843681,1725208238965,-500.0,0.00024657,2]
[336843682,1725208238975,-500.0,0.00024657,2]
[336843683,1725208238985,-500.0,0.00024657,2]
[336843684,1725208238994,-500.0,0.00024657,2]
[336843685,1725208239004,-500.0,0.00024657,2]
[336843686,1725208239014,-500.0,0.00024657,2]
[336843687,1725208239023,-501.59387068,0.00024657,2]
[336843688,1725208239191,-500.0,0.00024657,2]
[336843689,1725208239202,-500.0,0.00024657,2]
[336843690,1725208239216,-500.0,0.00024657,2]
[336843691,1725208239225,-500.0,0.00024657,2]
[336843692,1725208239235,-500.0,0.00024657,2]
[336843693,1725208239245,-500.0,0.00024657,2]
[336843694,1725208239257,-500.0,0.00024657,2]
[336843695,1725208239267,-500.0,0.00024657,2]
[336843696,1725208239276,-500.0,0.00024657,2]
[336843697,1725208239285,-500.0,0.00024657,2]
[336843698,1725208239297,-500.0,0.00024657,2]
[336843700,1725208239306,-500.0,0.00024657,2]
[336843701,1725208239315,-500.0,0.00024657,2]
[336843702,1725208239325,-500.0,0.00024657,2]
[336843703,1725208239335,-500.0,0.00024657,2]
[336843704,1725208239344,-500.0,0.00024657,2]
[336843705,1725208239354,-500.0,0.00024657,2]
[336843706,1725208239363,-500.0,0.00024657,2]
[336843707,1725208239372,-501.09996206,0.00024657,2]
[336843708,1725208239382,-500.0,0.00024657,2]
[336843709,1725208239391,-524.3306409,0.00024657,2]
[336843710,1725208239401,-500.0,0.00024657,2]
[336843711,1725208239410,-500.0,0.00024657,2]
[336843713,1725208239419,-500.0,0.00024657,2]
[336843714,1725208239428,-500.0,0.00024657,2]
[336843715,1725208239438,-500.0,0.00024657,2]
[336843716,1725208239447,-500.0,0.00024657,2]
[336843717,1725208239456,-500.0,0.00024657,2]
[336843718,1725208239465,-500.0,0.00024657,2]
[336843719,1725208239475,-500.0,0.00024657,2]
[336843720,1725208239484,-500.0,0.00024657,2]
[336843721,1725208239493,-208.9419651,0.00024657,2]
[336843722,1725208239504,-501.40880738,0.00024657,2]
[336843723,1725208239513,-500.0,0.00024657,2]
[336843724,1725208239522,-500.0,0.00024657,2]
[336843725,1725208239531,-500.0,0.00024657,2]
[336843726,1725208239541,-556.9,0.00024657,2]
[336843727,1725208239551,-500.0,0.00024657,2]
[336843728,1725208239561,-500.0,0.00024657,2]
[336843729,1725208239570,-500.0,0.00024657,2]
[336843730,1725208239579,-500.0,0.00024657,2]
[336843731,1725208239589,-500.0,0.00024657,2]
[336843732,1725208239599,-500.0,0.00024657,2]
[336843733,1725208239609,-500.0,0.00024657,2]
[336843734,1725208239618,-686.08,0.00024657,2]
[336843735,1725208239628,-500.0,0.00024657,2]
[336843736,1725208239638,-500.0,0.00024657,2]
[336843737,1725208239647,-500.0,0.00024657,2]
[336843738,1725208239656,-501.39913101,0.00024657,2]
[336843739,1725208239665,-500.20890072,0.00024657,2]
[336843740,1725208239675,-297.12393522,0.00024657,2]
[336843741,1725208239684,-231.81405816,0.00024657,2]
[336843742,1725208239693,-960.34,0.00024657,2]
[336843743,1725208239703,-500.0,0.00024657,2]
[336843744,1725208239712,-500.0,0.00024657,2]
[336843745,1725208239723,-500.0,0.00024657,2]
[336843746,1725208239733,-885.28,0.00024657,2]
[336843747,1725208239743,-500.0,0.00024657,2]
[336843748,1725208239753,-500.0,0.00024657,2]
[336843749,1725208239762,-500.0,0.00024657,2]
[336843750,1725208239772,-637.01,0.00024657,2]
[336843751,1725208239781,-639.98416241,0.00024657,2]
[336843752,1725208239792,-500.0,0.00024657,2]
[336843753,1725208239802,-520.48266586,0.00024657,2]
[336843754,1725208239811,-500.0,0.00024657,2]
[336843755,1725208239821,-769.93,0.00024657,2]
[336843756,1725208239831,-500.0,0.00024657,2]
[336843757,1725208239840,-500.0,0.00024657,2]
[336843758,1725208239851,-500.0,0.00024657,2]
[336843759,1725208239860,-500.0,0.00024657,2]
[336843761,1725208239870,-500.0,0.00024657,2]
[336843763,1725208239880,-500.0,0.00024657,2]
[336843765,1725208239891,-500.0,0.00024657,2]
[336843766,1725208239900,-500.0,0.00024657,2]
[336843768,1725208239910,-500.0,0.00024657,2]
[336843770,1725208239920,-500.0,0.00024657,2]
[336843772,1725208239929,-500.0,0.00024657,2]
[336843774,1725208239940,-500.0,0.00024657,2]
[336843776,1725208239949,-500.0,0.00024657,2]
[336843778,1725208239958,-500.0,0.00024657,2]
[336843780,1725208239967,-500.0,0.00024657,2]
[336843782,1725208239977,-1586.72,0.00024657,2]
[336843783,1725208239986,-500.0,0.00024657,2]
[336843785,1725208239996,-500.0,0.00024657,2]
[336843787,1725208240006,-500.0,0.00024657,2]
[336843789,1725208240015,-500.0,0.00024657,2]
[336843791,1725208240025,-500.0,0.00024657,2]
[336843793,1725208240034,-500.0,0.00024657,2]
[336843795,1725208240043,-403.47532695,0.00024657,2]
[336843797,1725208240053,-503.54598356,0.00024657,2]
[336843798,1725208240062,-500.0,0.00024657,2]
[336843800,1725208240071,-200.0,0.00024657,2]
[336843802,1725208240080,-788.47,0.00024657,2]
[336843804,1725208240089,-500.0,0.00024657,2]
[336843806,1725208240099,-500.0,0.00024657,2]
[336843808,1725208240109,-500.0,0.00024657,2]
[336843810,1725208240118,-500.0,0.00024657,2]
[336843812,1725208240127,-500.0,0.00024657,2]
[336843814,1725208240136,-500.0,0.00024657,2]
[336843816,1725208240145,-523.95088224,0.00024657,2]
[336843817,1725208240154,-504.87629829,0.00024657,2]
[336843819,1725208240163,-500.0,0.00024657,2]
[336843821,1725208240173,-500.0,0.00024657,2]
[336843823,1725208240182,-960.8,0.00024657,2]
[336843825,1725208240191,-500.0,0.00024657,2]
[336843827,1725208240201,-500.0,0.00024657,2]
[336843829,1725208240213,-1399.19,0.00024657,2]
[336843831,1725208240223,-1032.24,0.00024657,2]
[336843833,1725208240233,-500.0,0.00024657,2]
[336843835,1725208240243,-500.0,0.00024657,2]
[336843837,1725208240254,-500.0,0.00024657,2]
[336843838,1725208240265,-857.85,0.00024657,2]
[336843840,1725208240274,-545.76850301,0.00024657,2]
[336843842,1725208240283,-500.0,0.00024657,2]
[336843844,1725208240294,-451.6907883,0.00024657,2]
[336843846,1725208240305,-500.0,0.00024657,2]
[336843847,1725208240314,-500.0,0.00024657,2]
[336843848,1725208240323,-500.0,0.00024657,2]
[336843849,1725208240333,-621.67,0.00024657,2]
[336843850,1725208240342,-500.0,0.00024657,2]
[336843851,1725208240352,-500.0,0.00024657,2]
[336843852,1725208240361,-500.0,0.00024657,2]
[336843853,1725208240371,-500.0,0.00024657,2]
[336843854,1725208240380,-500.0,0.00024657,2]
[336843855,1725208240390,-500.0,0.00024657,2]
[336843856,1725208240400,-500.0,0.00024657,2]
[336843857,1725208240409,-500.0,0.00024657,2]
[336843858,1725208240419,-500.0,0.00024657,2]
[336843859,1725208240428,-500.0,0.00024657,2]
[336843860,1725208240437,-500.0,0.00024657,2]
[336843861,1725208240447,-500.0,0.00024657,2]
[336843862,1725208240457,-500.0,0.00024657,2]
[336843863,1725208240467,-500.0,0.00024657,2]
[336843864,1725208240477,-500.0,0.00024657,2]
[336843865,1725208240486,-500.0,0.00024657,2]
[336843866,1725208240496,-1035.37,0.00024657,2]
[336843867,1725208240507,-500.0,0.00024657,2]
[336843868,1725208240516,-500.0,0.00024657,2]
[336843869,1725208240526,-500.0,0.00024657,2]
[336843870,1725208240536,-500.0,0.00024657,2]
[336843871,1725208240547,-500.0,0.00024657,2]
[336843872,1725208240557,-500.0,0.00024657,2]
[336843873,1725208240567,-500.0,0.00024657,2]
[336843874,1725208240577,-500.0,0.00024657,2]
[336843875,1725208240587,-500.0,0.00024657,2]
[336843876,1725208240596,-500.0,0.00024657,2]
[336843877,1725208240605,-500.0,0.00024657,2]
[336843878,1725208240615,-500.0,0.00024657,2]
[336843879,1725208240626,-500.0,0.00024657,2]
[336843880,1725208240635,-4850.08,0.00024657,2]
[336843881,1725208240647,-500.0,0.00024657,2]
[336843882,1725208240659,-500.0,0.00024657,2]
[336843883,1725208240668,-500.0,0.00024657,2]
[336843884,1725208240678,-500.0,0.00024657,2]
[336843885,1725208240687,-500.0,0.00024657,2]
[336843886,1725208240697,-500.0,0.00024657,2]
[336843887,1725208240707,-500.0,0.00024657,2]
[336843888,1725208240717,-500.0,0.00024657,2]
[336843889,1725208240726,-500.0,0.00024657,2]
[336843890,1725208240736,-500.0,0.00024657,2]
[336843891,1725208240745,-500.0,0.00024657,2]
[336843892,1725208240756,-500.0,0.00024657,2]
[336843893,1725208240765,-502.57258603,0.00024657,2]
[336843894,1725208240774,-503.01384065,0.00024657,2]
[336843895,1725208240783,-500.0,0.00024657,2]
[336843896,1725208240793,-1466.23,0.00024657,2]
[336843897,1725208240802,-500.0,0.00024657,2]
[336843898,1725208240811,-500.0,0.00024657,2]
[336843899,1725208240821,-500.0,0.00024657,2]
[336843900,1725208240830,-500.0,0.00024657,2]
[336843901,1725208240840,-603.14385645,0.00024657,2]
[336843902,1725208240850,-500.0,0.00024657,2]
[336843903,1725208240859,-500.0,0.00024657,2]
[336843904,1725208240869,-500.0,0.00024657,2]
[336843905,1725208240879,-538.01,0.00024657,2]
[336843906,1725208240888,-500.0,0.00024657,2]
[336843907,1725208240898,-500.0,0.00024657,2]
[336843908,1725208240907,-500.0,0.00024657,2]
[336843909,1725208240917,-500.0,0.00024657,2]
[336843910,1725208240927,-500.0,0.00024657,2]
[336843911,1725208240936,-774.17,0.00024657,2]
[336843912,1725208240946,-843.25,0.00024657,2]
[336843913,1725208240955,-500.0,0.00024657,2]
[336843914,1725208240964,-743.54,0.00024657,2]
[336843915,1725208240974,-569.36,0.00024657,2]
[336843916,1725208240983,-500.0,0.00024657,2]
[336843917,1725208240993,-860.06,0.00024657,2]
[336843918,1725208241002,-500.0,0.00024657,2]
[336843919,1725208241012,-500.0,0.00024657,2]
[336843920,1725208241022,-500.0,0.00024657,2]
[336843921,1725208241032,-500.0,0.00024657,2]
[336843922,1725208241041,-500.0,0.00024657,2]
[336843923,1725208241052,-500.0,0.00024657,2]
[336843924,1725208241061,-500.0,0.00024657,2]
[336843925,1725208241070,-500.0,0.00024657,2]
[336843926,1725208241080,-500.0,0.00024657,2]
[336843927,1725208241090,-500.0,0.00024657,2]
[336843928,1725208241099,-675.09,0.00024657,2]
[336843929,1725208241108,-500.0,0.00024657,2]
[336843930,1725208241118,-500.0,0.00024657,2]
[336843931,1725208241127,-584.60689834,0.00024657,4]
[336843932,1725208241136,-500.0,0.00024657,2]
[336843933,1725208241145,-500.0,0.00024657,2]
[336843934,1725208241154,-500.0,0.00024657,2]
[336843935,1725208241164,-500.0,0.00024657,2]
[336843936,1725208241174,-500.0,0.00024657,2]
[336843937,1725208241184,-500.0,0.00024657,2]
[336843938,1725208241193,-500.0,0.00024657,2]
[336843939,1725208241203,-500.0,0.00024657,2]
[336843940,1725208241217,-513.10319101,0.00024657,2]
[336843941,1725208241226,-500.0,0.00024657,2]
[336843942,1725208241236,-500.0,0.00024657,2]
[336843943,1725208241247,-659.95,0.00024657,2]
[336843944,1725208241258,-713.87,0.00024657,2]
[336843945,1725208241268,-500.0,0.00024657,2]
[336843946,1725208241277,-500.0,0.00024657,2]
[336843947,1725208241286,-500.0,0.00024657,2]
[336843948,1725208241296,-706.75,0.00024657,2]
[336843949,1725208241306,-500.0,0.00024657,2]
[336843951,1725208241315,-500.0,0.00024657,2]
[336843952,1725208241326,-500.0,0.00024657,2]
[336843953,1725208241335,-500.0,0.00024657,2]
[336843954,1725208241344,-500.0,0.00024657,2]
[336843955,1725208241354,-500.0,0.00024657,2]
[336843956,1725208241365,-500.0,0.00024657,2]
[336843957,1725208241374,-601.5,0.00024657,2]
[336843958,1725208241383,-500.0,0.00024657,2]
[336843959,1725208241393,-500.0,0.00024657,2]
[336843960,1725208241402,-500.0,0.00024657,2]
[336843961,1725208241411,-493.54742001,0.00024657,2]
[336843962,1725208241421,-500.0,0.00024657,2]
[336843963,1725208241430,-1506.67,0.00024657,2]
[336843964,1725208241439,-995.04,0.00024657,2]
[336843965,1725208241448,-372.24155143,0.00024657,2]
[336843966,1725208241458,-500.0,0.00024657,2]
[336843967,1725208241468,-500.0,0.00024657,2]
[336843968,1725208241478,-577.91,0.00024657,2]
[336843969,1725208241487,-500.0,0.00024657,2]
[336843970,1725208241496,-500.0,0.00024657,2]
[336843971,1725208241506,-569.44,0.00024657,2]
[336843972,1725208241516,-1264.63,0.00024657,2]
[336843973,1725208241526,-500.0,0.00024657,2]
[336843974,1725208241535,-500.0,0.00024657,2]
[336843975,1725208241543,-2037.44,0.00024657,2]
[336843976,1725208241553,-500.0,0.00024657,2]
[336843977,1725208241562,-500.0,0.00024657,2]
[336843978,1725208241571,-500.0,0.00024657,2]
[336843979,1725208241580,-500.0,0.00024657,2]
[336843980,1725208241590,-500.0,0.00024657,2]
[336843981,1725208241599,-500.0,0.00024657,2]
[336843982,1725208241610,-500.0,0.00024657,2]
[336843983,1725208241620,-500.0,0.00024657,2]
[336843984,1725208241630,-500.89437098,0.00024657,2]
[336843985,1725208241639,-500.0,0.00024657,2]
[336843986,1725208241648,-1592.91,0.00024657,2]
[336843987,1725208241657,-500.0,0.00024657,2]
[336843988,1725208241667,-500.0,0.00024657,2]
[336843989,1725208241676,-2244.05,0.00024657,2]
[336843990,1725208241686,-500.0,0.00024657,2]
[336843991,1725208241695,-500.0,0.00024657,2]
[336843992,1725208241705,-500.0,0.00024657,2]
[336843993,1725208241714,-500.0,0.00024657,2]
[336843994,1725208241724,-530.88,0.00024657,2]
[336843995,1725208241734,-500.0,0.00024657,2]
[336843996,1725208241744,-500.0,0.00024657,2]
[336843997,1725208241754,-500.0,0.00024657,2]
[336843998,1725208241763,-500.0,0.00024657,2]
[336843999,1725208241773,-500.0,0.00024657,2]
[336844000,1725208241782,-391.05981609,0.00024657,2]
[336844001,1725208241791,-1945.41,0.00024657,2]
[336844002,1725208241801,-500.0,0.00024657,2]
[336844003,1725208241810,-500.0,0.00024657,2]
[336844004,1725208241937,-500.0,0.00024657,2]
[336844005,1725208241947,-500.0,0.00024657,2]
[336844006,1725208241957,-517.37,0.00024657,2]
[336844007,1725208241966,-1559.63,0.00024657,2]
[336844008,1725208241976,-500.0,0.00024657,2]
[336844009,1725208241985,-575.9,0.00024657,2]
[336844010,1725208241994,-500.0,0.00024657,2]
[336844011,1725208242005,-500.0,0.00024657,2]
[336844012,1725208242015,-500.0,0.00024657,2]
[336844013,1725208242024,-500.0,0.00024657,2]
[336844014,1725208242034,-500.0,0.00024657,2]
[336844015,1725208242043,-502.29434108,0.00024657,2]
[336844016,1725208242053,-500.0,0.00024657,2]
[336844017,1725208242062,-1643.64,0.00024657,2]
[336844018,1725208242071,-500.0,0.00024657,2]
[336844019,1725208242080,-540.89,0.00024657,2]
[336844020,1725208242090,-616.42,0.00024657,2]
[336844021,1725208242099,-1049.07,0.00024657,2]
[336844022,1725208242110,-504.13032995,0.00024657,2]
[336844023,1725208242119,-500.0,0.00024657,2]
[336844024,1725208242129,-500.0,0.00024657,2]
[336844025,1725208242140,-500.0,0.00024657,2]
[336844026,1725208242152,-500.0,0.00024657,2]
[336844027,1725208242162,-737.46,0.00024657,2]
[336844028,1725208242171,-602.39,0.00024657,2]
[336844029,1725208242181,-828.6,0.00024657,2]
[336844030,1725208242190,-500.0,0.00024657,2]
[336844031,1725208242199,-2551.78,0.00024657,2]
[336844032,1725208242209,-511.11378814,0.00024657,2]
[336844033,1725208242222,-2511.39,0.00024657,2]
[336844034,1725208242232,-1094.09,0.00024657,2]
[336844035,1725208242242,-500.0,0.00024657,2]
[336844036,1725208242252,-1578.15,0.00024657,2]
[336844037,1725208242262,-500.0,0.00024657,2]
[336844038,1725208242271,-503.24968437,0.00024657,2]
[336844039,1725208242280,-691.19,0.00024657,2]
[336844040,1725208242291,-503.38062464,0.00024657,2]
[336844041,1725208242301,-500.0,0.00024657,2]
[336844042,1725208242310,-1436.31,0.00024657,2]
[336844043,1725208242320,-500.0,0.00024657,2]
[336844044,1725208242329,-500.0,0.00024657,2]
[336844045,1725208242339,-500.0,0.00024657,2]
[336844046,1725208242348,-575.21,0.00024657,2]
[336844047,1725208242357,-500.0,0.00024657,2]
[336844048,1725208242366,-500.0,0.00024657,2]
[336844050,1725208242375,-914.04,0.00024657,2]
[336844052,1725208242385,-500.0,0.00024657,2]
[336844053,1725208242394,-503.54963066,0.00024657,2]
[336844057,1725208242404,-2953.98,0.00024657,2]
[336844059,1725208242413,-974.0,0.00024657,2]
[336844060,1725208242423,-499.42178004,0.00024657,2]
[336844061,1725208242434,-594.96,0.00024657,2]
[336844062,1725208242443,-500.0,0.00024657,2]
[336844063,1725208242453,-3804.53,0.00024657,2]
[336844065,1725208242463,-2241.31,0.00024657,2]
[336844067,1725208242472,-500.0,0.00024657,2]
[336844069,1725208242482,-500.0,0.00024657,2]
[336844071,1725208242491,-500.0,0.00024657,2]
[336844073,1725208242500,-2345.81,0.00024657,2]
[336844075,1725208242511,-500.0,0.00024657,2]
[336844077,1725208242523,-500.0,0.00024657,2]
[336844079,1725208242534,-500.18148723,0.00024657,2]
[336844081,1725208242543,-571.88,0.00024657,2]
[336844083,1725208242553,-2004.37,0.00024657,2]
[336844085,1725208242562,-500.0,0.00024657,2]
[336844086,1725208242572,-500.0,0.00024657,2]
[336844087,1725208242582,-500.0,0.00024657,2]
[336844088,1725208242590,-500.0,0.00024657,2]
[336844089,1725208242600,-511.09599293,0.00024657,2]
[336844090,1725208242610,-500.0,0.00024657,2]
[336844091,1725208242619,-1141.93,0.00024657,2]
[336844092,1725208242629,-2959.82,0.00024657,2]
[336844093,1725208242639,-500.0,0.00024657,2]
[336844094,1725208242650,-966.68,0.00024657,2]
[336844095,1725208242659,-564.06,0.00024657,2]
[336844096,1725208242668,-502.12257334,0.00024657,2]
[336844097,1725208242678,-391.47411515,0.00024657,2]
[336844098,1725208242687,-500.0,0.00024657,2]
[336844099,1725208242696,-500.0,0.00024657,2]
[336844100,1725208242706,-500.0,0.00024657,2]
[336844101,1725208242714,-500.0,0.00024657,2]
[336844102,1725208242723,-872.85,0.00024657,2]
[336844103,1725208242733,-181.05,0.00024657,2]
[336844104,1725208242742,-500.0,0.00024657,2]
[336844105,1725208242751,-500.0,0.00024657,2]
[336844106,1725208242761,-500.0,0.00024657,2]
[336844107,1725208242771,-500.0,0.00024657,2]
[336844108,1725208242780,-500.0,0.00024657,2]
[336844109,1725208242789,-1601.33,0.00024657,2]
[336844110,1725208242799,-500.0,0.00024657,2]
[336844111,1725208242808,-4866.25539616,0.00024657,2]
[336844120,1725208243012,-8296.81460384,0.00024657,2]
[336844121,1725208243024,-1025.23,0.00024657,2]
[336844122,1725208243033,-500.0,0.00024657,2]
[336844123,1725208243043,-500.0,0.00024657,2]
[336844124,1725208243053,-500.0,0.00024657,2]
[336844125,1725208243065,-500.0,0.00024657,2]
[336844126,1725208243074,-500.0,0.00024657,2]
[336844127,1725208243083,-500.0,0.00024657,2]
[336844128,1725208243093,-508.37158568,0.00024657,2]
[336844129,1725208243102,-500.0,0.00024657,2]
[336844130,1725208243112,-749.01,0.00024657,2]
[336844131,1725208243121,-710.82,0.00024657,2]
[336844132,1725208243131,-2081.59,0.00024657,2]
[336844133,1725208243140,-500.0,0.00024657,2]
[336844134,1725208243150,-500.0,0.00024657,2]
[336844135,1725208243159,-500.0,0.00024657,2]
[336844136,1725208243168,-500.0,0.00024657,2]
[336844137,1725208243178,-615.53,0.00024657,2]
[336844138,1725208243188,-500.0,0.00024657,2]
[336844139,1725208243197,-500.0,0.00024657,2]
[336844140,1725208243207,-500.0,0.00024657,2]
[336844141,1725208243221,-500.62487102,0.00024657,2]
[336844142,1725208243231,-2401.35,0.00024657,2]
[336844143,1725208243241,-1258.62,0.00024657,2]
[336844144,1725208243251,-1838.57,0.00024657,2]
[336844145,1725208243262,-500.0,0.00024657,2]
[336844146,1725208243271,-2055.11,0.00024657,2]
[336844147,1725208243280,-799.77,0.00024657,2]
[336844148,1725208243293,-593.47,0.00024657,2]
[336844149,1725208243302,-567.35,0.00024657,2]
[336844150,1725208243312,-500.0,0.00024657,2]
[336844151,1725208243321,-2456.34,0.00024657,2]
[336844152,1725208243331,-500.0,0.00024657,2]
[336844153,1725208243343,-500.0,0.00024657,2]
[336844154,1725208243352,-958.67,0.00024657,2]
[336844155,1725208243361,-500.0,0.00024657,2]
[336844156,1725208243371,-502.1027319,0.00024657,2]
[336844157,1725208243381,-500.0,0.00024657,2]
[336844158,1725208243391,-500.0,0.00024657,2]
[336844159,1725208243401,-2075.01,0.00024657,2]
[336844160,1725208243411,-500.0,0.00024657,2]
[336844161,1725208243420,-3595.62,0.00024657,2]
[336844162,1725208243430,-709.52,0.00024657,2]
[336844163,1725208243439,-500.0,0.00024657,2]
[336844164,1725208243449,-861.67,0.00024657,2]
[336844165,1725208243459,-2415.18,0.00024657,2]
[336844166,1725208243468,-2156.16,0.00024657,2]
[336844167,1725208243478,-500.0,0.00024657,2]
[336844168,1725208243487,-500.0,0.00024657,2]
[336844169,1725208243497,-500.0,0.00024657,2]
[336844170,1725208243507,-501.19927622,0.00024657,2]
[336844171,1725208243518,-500.0,0.00024657,2]
[336844172,1725208243527,-500.0,0.00024657,2]
[336844173,1725208243537,-500.0,0.00024657,2]
[336844174,1725208243546,-511.27,0.00024657,2]
[336844175,1725208243557,-518.21,0.00024657,2]
[336844176,1725208243567,-3419.92,0.00024657,2]
[336844177,1725208243578,-500.0,0.00024657,2]
[336844178,1725208243587,-2185.39,0.00024657,2]
[336844179,1725208243596,-500.0,0.00024657,2]
[336844180,1725208243605,-500.0,0.00024657,2]
[336844181,1725208243615,-269.84241401,0.00024657,2]
[336844182,1725208243625,-500.0,0.00024657,2]
[336844183,1725208243635,-1533.19,0.00024657,2]
[336844184,1725208243645,-548.03232326,0.00024657,2]
[336844185,1725208243655,-500.0,0.00024657,2]
[336844186,1725208243664,-484.01926431,0.00024657,2]
[336844187,1725208243674,-500.0,0.00024657,2]
[336844188,1725208243683,-1972.95,0.00024657,2]
[336844189,1725208243692,-500.0,0.00024657,2]
[336844190,1725208243702,-500.0,0.00024657,2]
[336844191,1725208243711,-500.0,0.00024657,2]
[336844192,1725208243720,-872.7,0.00024657,2]
[336844193,1725208243730,-500.0,0.00024657,2]
[336844194,1725208243740,-1241.3,0.00024657,2]
[336844195,1725208243750,-500.0,0.00024657,2]
[336844196,1725208243762,-783.46,0.00024657,2]
[336844197,1725208243771,-500.0,0.00024657,2]
[336844198,1725208243781,-689.45,0.00024657,2]
[336844199,1725208243791,-1630.85,0.00024657,2]
[336844200,1725208243801,-500.0,0.00024657,2]
[336844201,1725208243810,-1003.31,0.00024657,2]